bitfinex/quotes_SOLUSD_20241210
["timestamp","ask_amount","ask_price","bid_price","bid_amount"]
[1733847596929,20.0,208.87,208.65,43.15812179]
[1733847597255,20.0,208.86,208.63,43.15812179]
[1733847597431,20.0,208.86,208.55,12.9029]
[1733847597432,20.0,208.86,208.66,0.7184728]
[1733847597634,20.3311786,208.86,208.66,0.7184728]
[1733847598817,0.3311786,208.86,208.66,0.7184728]
[1733847599144,20.0,208.81,208.58,43.15812179]
[1733847599519,0.3311786,208.86,208.64,43.15812179]
[1733847600334,2.2803046,208.86,208.63,0.71847811]
[1733847600551,20.0,208.83,208.64,43.15812179]
[1733847600754,20.0,208.81,208.63,0.71847811]
[1733847601221,0.3311786,208.86,208.66,43.15812179]
[1733847601423,0.3311786,208.86,208.67,0.71837686]
[1733847601625,0.3311786,208.86,208.7,43.15812179]
[1733847601845,0.3311786,208.86,208.74,43.15812179]
[1733847602028,0.3311786,208.86,208.75,0.71818638]
[1733847602861,0.3311786,208.86,208.68,43.8763642]
[1733847603063,15.0,208.83,208.63,0.71835914]
[1733847603369,15.0,208.74,208.64,0.87642418]
[1733847603532,15.0,208.74,208.46,45.07251354]
[1733847603722,35.0,208.7,208.47,0.71911718]
[1733847603922,2.90624355,208.73,208.54,43.15812179]
[1733847604244,2.90624355,208.73,208.56,43.15812179]
[1733847604442,20.0,208.68,208.47,43.15812179]
[1733847604840,20.0,208.67,208.47,312.0]
[1733847605030,20.0,208.67,208.48,0.71916969]
[1733847605248,20.0,208.67,208.45,0.71915475]
[1733847605457,20.0,208.68,208.45,0.71915475]
[1733847605669,72.55918128,208.85,208.55,43.15812179]
[1733847605837,23.21845993,208.92,208.61,43.15812179]
[1733847605838,15.0,208.88,208.61,43.15812179]
[1733847606042,3.9394,208.89,208.65,43.15812179]
[1733847606268,3.9394,208.89,208.54,16.91615925]
[1733847606269,15.0,208.84,208.57,43.15812179]
[1733847606473,0.3311786,208.86,208.6,43.15812179]
[1733847606677,0.3311786,208.86,208.66,43.15812179]
[1733847606837,0.87986114,208.85,208.71,43.15812179]
[1733847607173,0.87986114,208.85,208.67,0.71831413]
[1733847607541,0.87986114,208.85,208.71,43.15812179]
[1733847607745,0.87986114,208.85,208.73,43.15812179]
[1733847608070,0.87986114,208.85,208.69,0.71813285]
[1733847608274,0.87986114,208.85,208.68,0.71840737]
[1733847608433,0.87986114,208.85,208.74,43.15812179]
[1733847608638,0.87986114,208.85,208.76,43.15812179]
[1733847608849,0.87986114,208.85,208.78,43.28361179]
[1733847609059,0.87986114,208.85,208.82,43.15812179]
[1733847609258,0.87986114,208.85,208.83,0.71787006]
[1733847609540,0.3311786,208.86,208.84,43.15812179]
[1733847609754,0.3311786,208.86,208.85,0.71782488]
[1733847609946,2.81859608,209.01,208.89,0.12549]
[1733847610151,2.81859608,209.01,208.94,43.15812179]
[1733847610370,2.81859608,209.01,208.95,0.7174617]
[1733847610668,11.99,209.12,208.96,43.15812179]
[1733847610865,11.99,209.12,208.97,0.71738198]
[1733847611058,2.91114099,209.11,208.95,0.71751893]
[1733847611235,2.91114099,209.11,208.96,43.15812179]
[1733847611436,2.91114099,209.11,208.97,0.71742182]
[1733847611642,11.99,209.12,208.85,20.4797]
[1733847611940,11.99,209.1,208.91,43.15812179]
[1733847612265,14.93419274,209.12,208.91,43.15812179]
[1733847612473,14.93419274,209.12,208.89,43.15812179]
[1733847612637,14.93419274,209.12,208.9,0.71766665]
[1733847613040,20.0,209.09,208.9,0.71766665]
[1733847613274,14.93419274,209.12,208.91,43.15812179]
[1733847613475,14.93419274,209.12,208.95,43.15812179]
[1733847614041,11.99,209.12,208.97,43.15812179]
[1733847614240,0.00194099,208.98,208.97,43.15812179]
[1733847614657,0.00194099,208.98,208.97,355.15812179]
[1733847615466,0.00194099,208.98,208.97,43.15812179]
[1733847616048,11.99,209.12,208.97,43.15812179]
[1733847616376,11.99,209.12,209.06,43.15812179]
[1733847616545,11.99,209.12,209.07,0.71701272]
[1733847616750,11.99,209.12,209.07,0.87462162]
[1733847617559,11.99,209.12,209.08,43.15812179]
[1733847617862,11.99,209.12,209.09,0.87453796]
[1733847618041,11.99,209.12,209.1,43.15812179]
[1733847618240,11.99,209.12,209.11,0.87445432]
[1733847618440,11.99,209.12,209.11,312.87445432]
[1733847618873,11.99,209.12,209.11,0.87445432]
[1733847620987,0.6184417,209.2,209.11,0.87445432]
[1733847621279,0.6184417,209.2,209.12,0.71716133]
[1733847621772,0.6184417,209.2,209.13,0.87437069]
[1733847621984,0.6184417,209.2,209.19,312.0]
[1733847622149,0.6184417,209.2,209.19,355.15812179]
[1733847622575,0.6184417,209.2,209.17,43.15812179]
[1733847622878,0.6184417,209.2,209.13,44.74922893]
[1733847623057,0.6184417,209.2,209.13,44.03249248]
[1733847623266,0.6184417,209.2,209.13,0.87437069]
[1733847623604,0.6184417,209.2,209.14,0.7169584]
[1733847623874,0.6184417,209.2,209.13,0.87437069]
[1733847624448,22.923,209.19,208.99,43.15812179]
[1733847624653,20.0,209.16,208.98,2.91082791]
[1733847624848,20.0,209.16,209.03,43.15812179]
[1733847625069,20.0,209.16,208.98,2.91082791]
[1733847625070,20.0,209.16,209.09,43.15812179]
[1733847625375,0.6184417,209.2,209.05,43.15812179]
[1733847625579,0.6184417,209.2,209.11,43.15812179]
[1733847625787,0.6184417,209.2,209.13,43.15812179]
[1733847626094,0.6184417,209.2,209.19,43.15812179]
[1733847626877,0.6184417,209.2,209.19,86.31624358]
[1733847627176,4.17e-05,209.2,209.19,101.31624358]
[1733847627380,4.17e-05,209.2,209.19,86.31624358]
[1733847627589,0.6184417,209.42,209.22,20.0]
[1733847627794,0.6184417,209.42,209.26,43.15812179]
[1733847627971,0.6184417,209.42,209.27,0.71629134]
[1733847628371,0.6184417,209.42,209.28,43.15812179]
[1733847628597,0.6184417,209.42,209.29,0.71629707]
[1733847628885,0.6184417,209.42,209.26,43.15812179]
[1733847629092,0.6184417,209.42,209.27,0.7163999]
[1733847629468,0.6184417,209.42,209.29,43.15812179]
[1733847629670,0.6184417,209.42,209.28,43.15812179]
[1733847629862,0.1184417,209.42,209.29,0.71634193]
[1733847630064,0.1184417,209.42,209.29,43.87446372]
[1733847630274,0.1184417,209.42,209.23,43.15812179]
[1733847630574,0.1184417,209.42,209.21,43.15812179]
[1733847630764,0.1184417,209.42,209.24,43.15812179]
[1733847630959,0.1184417,209.42,209.26,43.15812179]
[1733847631202,0.1184417,209.42,209.27,43.87451349]
[1733847631372,0.1184417,209.42,209.28,43.15812179]
[1733847631566,0.1184417,209.42,209.29,43.87441996]
[1733847631767,0.1184417,209.42,209.23,43.15812179]
[1733847632097,0.1184417,209.42,209.24,0.71643464]
[1733847632264,0.1184417,209.42,209.23,43.15812179]
[1733847632666,0.1184417,209.42,209.21,43.15812179]
[1733847632866,0.1184417,209.42,209.13,15.0]
[1733847632867,20.0,209.38,209.17,43.15812179]
[1733847633091,20.0,209.36,209.17,43.15812179]
[1733847633295,20.0,209.34,209.15,43.15812179]
[1733847633495,20.0,209.32,209.15,43.15812179]
[1733847633700,20.0,209.31,209.16,43.15812179]
[1733847633900,20.0,209.31,209.16,43.87503763]
[1733847634191,20.0,209.27,209.08,43.15812179]
[1733847634396,20.0,209.25,209.06,43.15812179]
[1733847634601,20.0,209.25,209.05,1.93431037]
[1733847634602,20.0,209.23,209.08,43.15812179]
[1733847634991,20.0,209.23,209.13,43.15812179]
[1733847635309,1.90006132,209.25,209.09,43.15812179]
[1733847635612,20.0,209.27,209.13,43.15812179]
[1733847635811,20.0,209.29,209.11,43.15812179]
[1733847636015,14.84308562,209.34,209.15,43.15812179]
[1733847636311,14.84308562,209.34,209.16,0.71672834]
[1733847636483,14.84308562,209.34,209.17,43.15812179]
[1733847636684,12.9369,209.34,209.18,0.71675229]
[1733847636982,12.9369,209.34,209.13,43.15812179]
[1733847637500,15.0,209.3,209.07,43.15812179]
[1733847637813,30.0,209.28,209.03,43.15812179]
[1733847637996,20.0,209.23,209.03,43.15812179]
[1733847638198,20.0,209.19,208.99,43.15812179]
[1733847638416,20.0,209.16,208.95,43.15812179]
[1733847638712,20.0,209.12,208.95,43.15812179]
[1733847639014,15.0,209.08,208.91,0.71742044]
[1733847639185,20.0,209.05,208.88,0.5]
[1733847639895,20.0,209.1,208.91,43.15812179]
[1733847640220,20.0,209.06,208.88,1.21758367]
[1733847640511,20.0,209.06,208.89,43.15812179]
[1733847640714,15.0,209.12,208.93,43.15812179]
[1733847640715,20.0,209.12,208.93,43.15812179]
[1733847641018,20.0,209.12,208.99,43.15812179]
[1733847641232,20.0,209.12,208.94,0.71747079]
[1733847641517,20.0,209.12,208.93,0.0527742]
[1733847641518,15.0,209.1,208.93,0.0527742]
[1733847641890,35.0,209.12,208.93,0.0527742]
[1733847642220,20.0,209.05,208.93,0.0527742]
[1733847642594,20.0,209.09,208.93,0.0527742]
[1733847642905,20.0,209.07,208.93,0.0527742]
[1733847643484,2.83225989,209.07,208.93,0.0527742]
[1733847644107,20.0,209.05,208.93,0.0527742]
[1733847644320,2.83225989,209.07,208.93,7.42e-05]
[1733847644321,20.0,208.99,208.93,7.42e-05]
[1733847644991,20.0,209.06,208.93,7.42e-05]
[1733847645323,12.9369,209.15,209.0,43.15812179]
[1733847645484,15.79626546,209.15,209.01,0.71730672]
[1733847645907,0.5,209.14,208.96,43.15812179]
[1733847646131,0.5,209.14,208.97,0.71745548]
[1733847646500,20.0,209.12,208.98,43.15812179]
[1733847646816,0.5,209.14,208.99,0.71734386]
[1733847647019,0.5,209.14,209.0,43.15812179]
[1733847647314,0.5,209.14,208.99,0.71734386]
[1733847647517,0.5,209.14,208.94,0.71740682]
[1733847647717,0.5,209.14,208.93,7.42e-05]
[1733847648023,15.0,209.12,208.93,7.42e-05]
[1733847648317,0.5,209.11,208.93,7.42e-05]
[1733847648621,0.5,209.11,208.94,0.71756255]
[1733847648917,0.5,209.11,208.96,43.15812179]
[1733847649090,1.89195016,209.16,209.02,43.15812179]
[1733847649291,15.5,209.23,209.03,0.71721757]
[1733847649491,2.8323236,209.2,209.03,0.71731072]
[1733847649691,0.5,209.19,209.03,0.71731072]
[1733847650912,0.42553191,209.18,209.03,0.71731072]
[1733847651133,0.42553191,209.18,209.08,43.15812179]
[1733847651432,0.42553191,209.18,209.09,0.716954]
[1733847651607,0.42553191,209.18,209.02,43.15812179]
[1733847651811,0.42553191,209.18,209.03,0.71720138]
[1733847652516,0.42553191,209.18,209.07,43.15812179]
[1733847652824,0.42553191,209.18,209.08,0.71696995]
[1733847653416,0.42553191,209.18,209.11,43.15812179]
[1733847653618,0.42553191,209.18,209.13,43.15812179]
[1733847653827,0.42553191,209.18,209.14,0.71691962]
[1733847654134,0.42553191,209.18,209.05,43.87512993]
[1733847654350,0.42553191,209.18,209.05,0.71700814]
[1733847654839,0.42553191,209.18,209.01,0.71728463]
[1733847655022,0.5,209.17,209.01,0.71728463]
[1733847655407,0.5,209.17,208.92,2.92040562]
[1733847655408,35.0,209.12,208.92,2.92040562]
[1733847655606,20.0,209.07,208.87,0.71765211]
[1733847655818,0.5,209.06,208.87,0.71765211]
[1733847656144,20.0,209.05,208.82,0.7177583]
[1733847656312,20.0,209.0,208.78,0.6843086]
[1733847656512,20.0,208.98,208.78,0.6843086]
[1733847656731,20.5,208.97,208.79,0.71805797]
[1733847657032,20.5,208.97,208.78,0.6843086]
[1733847657033,20.0,208.94,208.78,0.6843086]
[1733847657345,20.0,208.9,208.78,0.6843086]
[1733847657547,0.5,208.89,208.78,0.6843086]
[1733847657843,0.92553191,208.89,208.78,0.6843086]
[1733847658047,20.0,208.86,208.78,0.6843086]
[1733847658219,0.5,208.85,208.78,0.6843086]
[1733847658409,0.92553191,208.85,208.78,0.6843086]
[1733847658618,0.42553191,208.85,208.78,0.6843086]
[1733847659338,20.5,208.84,208.78,0.6843086]
[1733847659517,0.5,208.84,208.78,0.6843086]
[1733847659838,0.42553191,208.83,208.78,0.6843086]
[1733847660627,20.5,208.82,208.64,7.27256783]
[1733847660828,20.0,208.77,208.64,7.27256783]
[1733847661190,20.92553191,208.76,208.64,7.27256783]
[1733847661518,0.42553191,208.76,208.65,0.71859966]
[1733847661725,20.42553191,208.76,208.64,7.27256783]
[1733847661920,0.5,208.75,208.64,7.27256783]
[1733847662121,1.86139744,208.81,208.66,43.15812179]
[1733847662335,0.42553191,208.74,208.7,43.15812179]
[1733847662650,0.42553191,208.74,208.61,30.0]
[1733847662651,0.42553191,208.74,208.54,13.3092344]
[1733847662820,0.42553191,208.74,208.56,43.15812179]
[1733847663146,0.42553191,208.74,208.57,0.71880348]
[1733847663349,0.42553191,208.74,208.66,43.15812179]
[1733847663528,0.42553191,208.74,208.7,43.15812179]
[1733847663721,0.42553191,208.74,208.71,0.7183968]
[1733847664130,0.42553191,208.74,208.72,43.15812179]
[1733847664352,0.42553191,208.74,208.73,0.71817238]
[1733847665656,0.42553191,208.74,208.73,312.71817238]
[1733847665858,0.42553191,208.74,208.62,43.15812179]
[1733847666194,0.42553191,208.74,208.63,0.71857779]
[1733847666529,0.42553191,208.74,208.66,43.15812179]
[1733847666728,0.42553191,208.74,208.67,0.71842527]
[1733847667139,0.42553191,208.74,208.68,43.15812179]
[1733847667431,0.42553191,208.74,208.73,43.15812179]
[1733847667826,0.42553191,208.74,208.73,43.87645704]
[1733847668839,0.42553191,208.74,208.73,0.71833525]
[1733847668840,0.01623732,208.74,208.73,0.71833525]
[1733847669044,0.01623732,208.74,208.65,0.71836763]
[1733847669244,0.01623732,208.74,208.64,0.71861547]
[1733847669640,20.01623732,208.74,208.55,0.71863931]
[1733847669858,20.0,208.72,208.54,0.6842344]
[1733847670170,0.5,208.71,208.55,43.87700328]
[1733847670334,20.0,208.7,208.54,0.6842344]
[1733847672360,0.5,208.72,208.57,43.15812179]
[1733847672570,12.8593,208.77,208.63,43.15812179]
[1733847672571,0.5,208.76,208.63,43.15812179]
[1733847672786,1.92534232,208.78,208.65,43.15812179]
[1733847672787,2.82597724,208.78,208.65,43.15812179]
[1733847672948,2.44824943,208.83,208.66,0.71851792]
[1733847673151,2.87835279,208.8,208.61,43.87662629]
[1733847673475,0.5,208.79,208.61,0.7185045]
[1733847673659,0.5,208.79,208.63,43.15812179]
[1733847673980,0.5,208.84,208.69,43.15812179]
[1733847674155,3.37058279,208.84,208.67,43.15812179]
[1733847674473,12.8088,208.85,208.69,43.15812179]
[1733847674646,2.37895543,208.89,208.71,43.15812179]
[1733847674850,30.0,208.85,208.64,0.71829716]
[1733847675174,15.0,208.76,208.53,43.15812179]
[1733847675382,0.5,208.75,208.54,313.40314589]
[1733847675676,20.5,208.75,208.54,312.6842344]
[1733847675853,20.0,208.74,208.55,0.71881964]
[1733847676219,0.5,208.73,208.57,43.15812179]
[1733847676362,20.0,208.74,208.61,43.15812179]
[1733847676554,2.90734007,208.86,208.67,43.15812179]
[1733847676555,1.87378882,208.8,208.67,43.15812179]
[1733847676881,0.5,208.85,208.63,43.15812179]
[1733847677068,0.5,208.85,208.62,0.71844526]
[1733847677379,15.0,208.82,208.57,43.15812179]
[1733847677580,15.0,208.79,208.58,0.71878507]
[1733847677774,0.5,208.78,208.59,43.15812179]
[1733847677952,0.5,208.78,208.61,43.15812179]
[1733847678283,20.0,208.74,208.55,43.87677134]
[1733847678482,0.5,208.73,208.55,43.87677134]
[1733847678780,20.0,208.73,208.59,43.15812179]
[1733847678983,0.5,208.82,208.67,43.15812179]
[1733847679152,0.5,208.85,208.68,0.71831576]
[1733847679349,2.90734007,208.86,208.69,43.15812179]
[1733847679656,0.5,208.85,208.67,312.0]
[1733847679871,0.5,208.85,208.63,43.15812179]
[1733847680082,0.5,208.85,208.67,43.15812179]
[1733847680285,0.5,208.85,208.68,0.71839553]
[1733847680462,0.5,208.85,208.69,43.15812179]
[1733847680666,0.5,208.85,208.62,17.85924899]
[1733847680667,2.90734007,208.86,208.71,43.15812179]
[1733847680869,0.5,208.91,208.72,0.71828416]
[1733847681095,13.1917,208.93,208.77,43.15812179]
[1733847681292,0.5,208.92,208.78,0.71809036]
[1733847681469,2.87154331,208.94,208.79,43.15812179]
[1733847681668,2.87154331,208.94,208.74,0.71799647]
[1733847681669,0.5,208.93,208.74,0.71799647]
[1733847682099,15.0,208.92,208.7,0.7181909]
[1733847682264,0.5,208.91,208.7,0.71837179]
[1733847682474,0.5,208.91,208.71,43.15812179]
[1733847682697,0.5,208.91,208.72,0.71825628]
[1733847682989,17.87154331,208.94,208.72,0.71825628]
[1733847682990,0.5,208.93,208.75,43.15812179]
[1733847683192,0.5,208.93,208.76,0.71811687]
[1733847683893,15.5,208.93,208.72,0.71827864]
[1733847684105,20.0,208.9,208.72,0.71827864]
[1733847684275,2.87154331,208.94,208.73,43.15812179]
[1733847684276,0.5,208.89,208.73,43.15812179]
[1733847684472,17.62819302,208.98,208.79,43.15812179]
[1733847684473,0.5,208.97,208.79,43.15812179]
[1733847684672,0.5,208.97,208.81,43.15812179]
[1733847684899,2.85489095,208.98,208.83,43.15812179]
[1733847685201,0.5,209.0,208.84,0.71790711]
[1733847685896,3.74855355,208.99,208.84,0.71790711]
[1733847686089,21.37986114,208.98,208.84,0.71790711]
[1733847686270,0.87986114,208.97,208.84,0.71799549]
[1733847686472,0.5,208.96,208.84,0.71799549]
[1733847686677,0.87986114,208.96,208.85,43.15812179]
[1733847686882,0.87986114,208.96,208.86,0.71773147]
[1733847687095,0.87986114,208.96,208.89,43.15812179]
[1733847687296,0.87986114,208.96,208.9,0.71762796]
[1733847687473,0.87986114,208.96,208.86,0.71762796]
[1733847688003,0.87986114,208.96,208.81,43.87589746]
[1733847688218,0.5,208.95,208.77,0.71801288]
[1733847688679,20.0,208.93,208.77,0.71801288]
[1733847688879,0.5,208.92,208.77,43.87613467]
[1733847689084,0.5,208.95,208.81,43.15812179]
[1733847689283,0.5,208.95,208.82,0.71796432]
[1733847689701,0.5,208.95,208.8,0.71799783]
[1733847690075,21.37986114,208.95,208.8,0.71799783]
[1733847690284,20.0,208.9,208.76,0.71824692]
[1733847690498,20.0,208.9,208.77,43.15812179]
[1733847690696,20.0,208.9,208.7,73.15812179]
[1733847690697,20.0,208.9,208.79,43.15812179]
[1733847690998,2.9315533,208.94,208.8,0.71798738]
[1733847690999,20.5,208.93,208.8,0.71798738]
[1733847691385,15.0,209.02,208.8,0.71798738]
[1733847691386,0.5,209.01,208.8,0.71798738]
[1733847691586,20.0,208.98,208.8,0.71798738]
[1733847691789,0.5,208.97,208.8,0.71798738]
[1733847692297,0.5,209.0,208.8,0.71798738]
[1733847692496,20.0,208.98,208.8,0.71798738]
[1733847692795,20.0,208.92,208.74,0.57794018]
[1733847692997,20.0,208.87,208.69,0.71823375]
[1733847693184,0.5,208.86,208.69,0.71823375]
[1733847693376,20.0,208.87,208.73,43.15812179]
[1733847693572,0.5,208.86,208.74,0.71822114]
[1733847693775,0.5,208.87,208.75,0.71834255]
[1733847694004,20.0,208.86,208.75,0.71834255]
[1733847694202,20.0,208.86,208.75,43.87646434]
[1733847694608,20.0,208.88,208.75,0.71834255]
[1733847694791,0.5,208.87,208.74,0.71827532]
[1733847694992,20.0,208.88,208.75,43.15812179]
[1733847695198,0.5,208.87,208.69,0.71822149]
[1733847695393,20.5,208.87,208.65,43.15812179]
[1733847695600,20.0,208.87,208.79,43.15812179]
[1733847695811,12.8261,209.01,208.81,43.15812179]
[1733847695986,12.8261,209.01,208.83,43.15812179]
[1733847696189,12.3261,209.01,208.87,43.15812179]
[1733847696389,12.3261,209.01,208.88,0.71773316]
[1733847696590,2.44971318,209.04,208.9,43.15812179]
[1733847696789,5.30386651,209.04,208.91,0.71767467]
[1733847697011,3.35415333,209.04,208.91,0.71767467]
[1733847697313,0.5,209.07,208.91,0.71767467]
[1733847697898,2.9174951,209.06,208.85,0.71767071]
[1733847698098,15.0,209.04,208.82,43.15812179]
[1733847698296,0.5,209.03,208.8,43.15812179]
[1733847698615,0.5,209.05,208.9,43.15812179]
[1733847698801,0.5,209.08,208.92,43.15812179]
[1733847699001,0.5,209.08,208.93,0.71757964]
[1733847699392,3.3772736,209.1,208.94,43.15812179]
[1733847699592,3.3772736,209.1,208.98,312.0]
[1733847700015,2.8772736,209.1,208.98,312.0]
[1733847700217,0.5,209.09,208.92,43.15812179]
[1733847700388,0.5,209.09,208.93,0.71767502]
[1733847700594,19.660685,209.14,208.98,43.15812179]
[1733847700796,0.87986114,209.14,209.0,43.15812179]
[1733847701012,0.87986114,209.14,209.01,0.71735502]
[1733847701205,0.87986114,209.14,209.02,43.15812179]
[1733847701394,0.87986114,209.14,209.03,0.71716667]
[1733847701595,0.87986114,209.14,209.04,43.15812179]
[1733847701796,0.87986114,209.14,209.05,0.71719298]
[1733847701999,0.87986114,209.14,209.08,43.15812179]
[1733847702203,0.87986114,209.14,209.09,0.71701894]
[1733847702500,0.87986114,209.14,209.1,43.15812179]
[1733847702703,0.87986114,209.14,209.11,0.71695753]
[1733847702894,0.87986114,209.14,209.11,0.71700875]
[1733847703323,0.2897798,209.21,209.12,43.15812179]
[1733847703490,0.2897798,209.21,209.2,43.15812179]
[1733847704123,3.3962507,209.4,209.22,15.0]
[1733847704295,1.37986114,209.39,209.25,43.15812179]
[1733847704489,0.87986114,209.38,209.26,0.71654035]
[1733847705729,0.87986114,209.38,209.26,0.71656211]
[1733847705892,0.87986114,209.38,209.26,43.8746839]
[1733847706091,0.87986114,209.38,209.26,0.71656211]
[1733847706292,0.87986114,209.38,209.31,43.15812179]
[1733847706493,0.87986114,209.38,209.37,43.15812179]
[1733847706696,1.87038195,209.6,209.4,20.0]
[1733847706904,0.5,209.59,209.5,43.15812179]
[1733847707131,0.5903501,209.62,209.5,43.15812179]
[1733847707299,0.5903501,209.62,209.51,0.87278479]
[1733847707921,0.5903501,209.62,209.52,0.71567671]
[1733847708123,0.5903501,209.62,209.53,0.87270148]
[1733847709323,0.5903501,209.62,209.57,43.15812179]
[1733847709497,0.5903501,209.62,209.61,43.15812179]
[1733847709824,0.5903501,209.62,209.61,355.15812179]
[1733847710428,0.5903501,209.62,209.55,43.15812179]
[1733847711028,0.3081982,209.61,209.51,43.15812179]
[1733847711230,0.8081982,209.61,209.51,43.15812179]
[1733847711452,0.8081982,209.61,209.44,0.71569927]
[1733847711755,35.0,209.59,209.37,43.15812179]
[1733847712050,35.8081982,209.58,209.37,43.15812179]
[1733847712259,20.0,209.52,209.33,43.15812179]
[1733847712551,0.8081982,209.51,209.34,0.71624968]
[1733847712726,20.8081982,209.51,209.34,0.71624968]
[1733847712933,20.0,209.49,209.31,43.15812179]
[1733847713149,20.5,209.48,209.29,43.15812179]
[1733847713359,20.8081982,209.48,209.29,43.15812179]
[1733847713537,20.8081982,209.48,209.27,43.87447021]
[1733847713753,20.0,209.46,209.27,43.87447021]
[1733847713929,20.0,209.41,209.25,43.15812179]
[1733847714270,0.5,209.45,209.31,43.15812179]
[1733847714557,15.0,209.53,209.26,0.71652882]
[1733847714558,0.3081982,209.4,209.37,43.15812179]
[1733847714734,0.3081982,209.4,209.39,86.31624358]
[1733847714925,1.0903501,209.62,209.4,15.12549]
[1733847715126,1.0903501,209.62,209.54,43.15812179]
[1733847715127,0.5903501,209.62,209.54,43.15812179]
[1733847715622,0.5903501,209.62,209.58,43.15812179]
[1733847716027,0.5903501,209.62,209.6,43.15812179]
[1733847716630,0.5903501,209.62,209.61,0.71531188]
[1733847716831,0.5903501,209.62,209.61,312.0]
[1733847718960,0.5903501,209.62,209.5,43.15812179]
[1733847719257,0.5903501,209.62,209.52,43.15812179]
[1733847719445,0.5903501,209.62,209.47,2.87980847]
[1733847719446,0.5903501,209.62,209.58,43.15812179]
[1733847719645,0.5903501,209.62,209.54,43.15812179]
[1733847720263,0.5903501,209.62,209.56,43.15812179]
[1733847721036,0.5903501,209.62,209.5,43.15812179]
[1733847721238,0.5903501,209.62,209.48,43.15812179]
[1733847721440,0.5,209.61,209.35,12.4279]
[1733847721635,20.0,209.52,209.34,51.35792179]
[1733847721853,0.5,209.54,209.44,43.15812179]
[1733847722163,0.5903501,209.62,209.52,43.15812179]
[1733847722335,0.5903501,209.62,209.53,43.87364762]
[1733847722538,0.5903501,209.62,209.45,12.4279]
[1733847722539,0.5903501,209.62,209.47,43.15812179]
[1733847722769,0.5,209.61,209.45,43.15812179]
[1733847723268,15.0,209.58,209.41,43.15812179]
[1733847723433,15.0,209.58,209.36,12.4279]
[1733847723434,0.5,209.57,209.45,43.15812179]
[1733847723637,1.0903501,209.62,209.51,43.15812179]
[1733847723848,0.5903501,209.62,209.55,43.15812179]
[1733847724052,0.5903501,209.62,209.51,43.15812179]
[1733847724260,0.5903501,209.62,209.49,43.15812179]
[1733847725050,0.5903501,209.62,209.51,43.15812179]
[1733847725239,0.5903501,209.62,209.55,43.15812179]
[1733847725441,0.5903501,209.62,209.56,0.71552276]
[1733847725442,11.99,209.58,209.56,0.71552276]
[1733847725649,11.99,209.58,209.57,43.15812179]
[1733847725841,0.5903501,209.62,209.57,43.15812179]
[1733847725842,0.5903501,209.62,209.57,58.15812179]
[1733847726069,0.5903501,209.62,209.61,43.15812179]
[1733847726241,0.5903501,209.62,209.61,58.87322751]
[1733847726641,0.5903501,209.62,209.61,0.71510572]
[1733847727261,0.5903501,209.62,209.6,86.31624358]
[1733847727262,0.5903501,209.62,209.6,43.15812179]
[1733847727435,0.5,209.81,209.63,20.0]
[1733847727638,0.5903501,209.83,209.63,43.87317207]
[1733847727839,0.5,209.82,209.63,43.15812179]
[1733847728139,30.5,209.82,209.61,43.15812179]
[1733847728377,15.0,209.77,209.59,43.15812179]
[1733847728661,20.0,209.74,209.57,43.15812179]
[1733847728962,20.0,209.74,209.55,43.15812179]
[1733847728963,20.0,209.7,209.55,43.15812179]
[1733847729271,12.3867,209.74,209.62,43.15812179]
[1733847729438,15.0,209.84,209.62,43.15812179]
[1733847729439,20.0,209.8,209.62,43.15812179]
[1733847729638,20.5,209.79,209.62,43.15812179]
[1733847729852,20.0,209.75,209.58,43.15812179]
[1733847730145,20.0,209.75,209.48,26.9342]
[1733847730146,20.0,209.75,209.62,43.15812179]
[1733847730475,0.5,209.8,209.64,43.15812179]
[1733847730846,0.5,209.8,209.66,43.15812179]
[1733847731290,0.5,209.82,209.64,43.15812179]
[1733847731443,15.5,209.82,209.62,43.15812179]
[1733847731776,0.5,209.82,209.66,43.15812179]
[1733847731944,0.5,209.82,209.64,43.15812179]
[1733847733061,20.0,209.8,209.66,43.15812179]
[1733847733367,0.5,209.82,209.68,43.15812179]
[1733847733582,0.5903501,209.83,209.68,43.15812179]
[1733847733780,0.5,209.82,209.68,43.15812179]
[1733847733965,0.5903501,209.83,209.68,43.15812179]
[1733847734295,0.5903501,209.83,209.72,43.15812179]
[1733847734591,0.5903501,209.83,209.68,43.15812179]